[Event "Portuguese-ch U14-20 2022"]
[Site "Fatima"]
[Date "2022.04.10"]
[Round "1.22"]
[White "Areal, Maria Beatriz Moura"]
[Black "Sarabando, Rodrigo Andias"]
[Result "0-1"]
[ECO "B23"]
[WhiteElo "1343"]
[BlackElo "1897"]
[Annotator "NA RC"]
[PlyCount "112"]
[EventDate "2022.04.10"]
[EventType "swiss"]
[EventCountry "POR"]
[SourceTitle "playchess.com"]
[Source "ChessBase"]
[SourceQuality "1"]
[TimeControl "5400+30"]

1. e4 {[%emt 0:00:07]} c5 {[%emt 0:00:05]} 2. Nc3 {[%emt 0:00:36]} e6 {[%emt 0:05:36]} 3. f4 {[%emt 0:01:35]} d6 {[%emt 0:02:24]} 4. Nf3 {[%emt 0:03:09]} Nc6 {[%emt 0:00:37]} 5. Bb5 {[%emt 0:01:59]} Nge7 {[%emt 0:00:44]} 6. O-O {[%emt 0:01:35]} Qb6 {[%emt 0:01:47]} 7. d3 {[%emt 0:08:41]} ({Better is} 7. a4 $16) 7... g6 {[%emt 0:01:10]} 8. Qe1 {[%emt 0:04:12]} a6 {[%emt 0:01:51]} 9. Bxc6+ {[%emt 0:00:26]} Nxc6 {[%emt 0:00:09]} 10. a3 {[%emt 0:05:02]} Bg7 $1 {[%emt 0:00:25]} 11. Kh1 {[%emt 0:01:20]} (11. e5 $11 {feels stronger.}) 11... O-O {[%emt 0:01:14]} 12. Qh4 {[%emt 0:06:12]} (12. e5 $11) 12... Qd8 {[%emt 0:01:36]} 13. Qe1 b5 {[%emt 0:00:16]} 14. Rb1 {[%emt 0:10:53]} b4 {[%emt 0:01:23]} (14... Nd4 $17 15. Nxd4 cxd4) 15. Ne2 {[%emt 0:03:23]} Rb8 {[%emt 0:00:24]} 16. b3 {[%emt 0:01:36]} a5 {[%emt 0:01:17]} 17. a4 {[%emt 0:00:54]} Nd4 {[%emt 0:00:26]} 18. Nexd4 cxd4 {[%emt 0:00:07]} 19. Qf2 {[%emt 0:04:26]} e5 {[%emt 0:01:06]} 20. fxe5 {[%emt 0:03:45]} dxe5 {[%emt 0:00:20]} 21. h3 {[%emt 0:03:38]} (21. Bg5 $17 Qc7 22. Qd2) 21... Rb6 {[%emt 0:01:44]} 22. Bg5 {[%emt 0:02:45]} Qc7 {[%emt 0:06:29]} 23. Qd2 {[%emt 0:03:49]} Rc6 {[%emt 0:01:25]} 24. Rf2 {[%emt 0:01:15]} f6 {[%emt 0:00:50]} 25. Bh4 {[%emt 0:00:50]} Be6 {[%emt 0:01:36]} 26. Rbf1 {[%emt 0:01:32]} Rc8 {[%emt 0:01:04]} 27. Ne1 $19 {[%emt 0:00:37]} g5 {[%emt 0:01:04]} 28. Bg3 {[%emt 0:00:39]} Bf7 {[%emt 0:01:32]} 29. Qe2 {[%emt 0:03:06]} Bg6 {[%emt 0:01:08]} 30. Bh2 {[%emt 0:03:36]} h5 {[%emt 0:01:28]} 31. g4 {[%emt 0:02:45]} h4 {[%emt 0:03:04]} 32. Qd2 {[%emt 0:04:09]} Bf7 {[%emt 0:01:24]} 33. Rf5 {[%emt 0:01:53]} Rf8 {[%emt 0:05:12]} 34. R5f2 {[%emt 0:01:53]} Be6 {[%emt 0:01:02]} 35. Qe2 {[%emt 0:01:16]} Qe7 {[%emt 0:02:24]} 36. Rf3 {[%emt 0:02:49]} Rfc8 {[%emt 0:02:06]} 37. R3f2 {[%emt 0:00:50]} Kh7 {[%emt 0:00:08]} 38. Qf3 {[%emt 0:01:23]} Rc3 {[%emt 0:00:53]} 39. Qe2 {[%emt 0:00:32]} Bxb3 {[%emt 0:00:48]} 40. cxb3 {[%emt 0:01:03]} Rxb3 {[%emt 0:00:02]} 41. Qd1 {[%emt 0:01:49]} Rbc3 {[%emt 0:00:17]} 42. Rb2 {[%emt 0:01:22]} Qe8 {[%emt 0:00:37]} 43. Bg1 {[%emt 0:02:37]} Rc1 {[%emt 0:00:41]} 44. Qb3 {[%emt 0:02:44]} R8c3 {[%emt 0:00:12]} 45. Qd5 {[%emt 0:00:44]} Qxa4 {[%emt 0:01:12]} 46. Qf7 {[%emt 0:00:27]} Rc7 {[%emt 0:00:56]} 47. Qe6 {[%emt 0:00:28]} Qb5 {[%emt 0:01:50]} 48. Qf5+ {[%emt 0:01:59]} Kh8 {[%emt 0:01:57]} 49. Qf2 {[%emt 0:01:10]} b3 {[%emt 0:01:00]} 50. Qd2 {[%emt 0:00:58]} a4 {[%emt 0:00:18]} 51. Bf2 {[%emt 0:00:38]} a3 {[%emt 0:00:26]} 52. Bxh4 axb2 {[%emt 0:01:30]} 53. Bxg5 {[%emt 0:00:54]} fxg5 {[%emt 0:01:08]} 54. Qxg5 {[%emt 0:00:06]} Qe8 {[%emt 0:00:21]} 55. Qh4+ Kg8 {[%emt 0:00:08]} 56. g5 {[%emt 0:01:05]} R7c6 {[%emt 0:01:00]} 0-1

[Event "Portuguese-ch U14-20 2022"]
[Site "Fatima"]
[Date "2022.04.10"]
[Round "1.23"]
[White "Basilio, Rodrigo"]
[Black "Gaspar, Bernardo"]
[Result "1/2-1/2"]
[ECO "C50"]
[WhiteElo "1941"]
[BlackElo "1365"]
[Annotator "NA RC"]
[PlyCount "236"]
[EventDate "2022.04.10"]
[EventType "swiss"]
[EventCountry "POR"]
[SourceTitle "playchess.com"]
[Source "ChessBase"]
[SourceQuality "1"]
[TimeControl "5400+30"]

1. e4 {[%emt 0:00:02]} e5 {[%emt 0:00:04]} 2. Nf3 {[%emt 0:00:04]} Nc6 {[%emt 0:00:07]} 3. Bc4 {[%emt 0:00:06]} Bc5 {[%emt 0:00:12]} 4. d3 {[%emt 0:00:05]} h6 {[%emt 0:00:21]} 5. c3 {[%emt 0:00:08]} Nf6 {[%emt 0:00:44]} 6. b4 {[%emt 0:02:12]} Bb6 {[%emt 0:08:13]} 7. O-O {[%emt 0:30:19]} d6 {[%emt 0:15:13]} 8. Re1 {[%emt 0:03:55]} O-O {[%emt 0:07:41]} 9. Nbd2 {[%emt 0:00:37]} Ng4 {[%emt 0:17:15]} 10. Re2 {[%emt 0:01:51]} Be6 {[%emt 0:13:12]} 11. h3 {[%emt 0:06:27]} Nf6 {[%emt 0:03:32]} 12. Qb3 {[%emt 0:16:10]} Qd7 $14 {[%emt 0:05:39]} (12... Nh5 $5 {[%cal Rh5f4]}) 13. Nf1 {[%emt 0:13:33]} Bxc4 {[%emt 0:05:21]} 14. Qxc4 {[%emt 0:01:15]} Qe6 {[%emt 0:03:34]} 15. Qxe6 {[%emt 0:01:11]} fxe6 {[%emt 0:00:09]} 16. N1d2 {[%emt 0:04:20]} Nh5 {[%emt 0:03:54]} 17. Nc4 {[%emt 0:01:21]} Nf4 {[%emt 0:01:04]} 18. Bxf4 {[%emt 0:00:15]} Rxf4 {[%emt 0:00:22]} 19. a4 {[%emt 0:01:11]} a6 {[%emt 0:02:44]} 20. Nxb6 {[%emt 0:03:22]} cxb6 {[%emt 0:00:06]} 21. Rc1 {[%emt 0:02:48]} Rc8 {[%emt 0:01:01]} 22. Rec2 {[%emt 0:04:57]} Kf7 {[%emt 0:04:43]} 23. Nh2 {[%emt 0:02:53]} Ke7 {[%emt 0:01:01]} 24. g3 {[%emt 0:00:22]} Rf7 {[%emt 0:00:58]} 25. Ng4 {[%emt 0:01:35]} d5 {[%emt 0:01:46]} 26. exd5 {[%emt 0:00:35]} exd5 {[%emt 0:00:01]} 27. Re2 {[%emt 0:00:21]} Kd6 {[%emt 0:00:40]} 28. Rce1 {[%emt 0:00:16]} h5 {[%emt 0:01:21]} 29. Ne3 {[%emt 0:01:57]} Rcf8 {[%emt 0:00:38]} 30. Nd1 {[%emt 0:00:33]} Rf3 {[%emt 0:00:31]} 31. b5 {[%emt 0:00:06]} axb5 {[%emt 0:00:40]} 32. axb5 {[%emt 0:00:01]} Na7 {[%emt 0:00:02]} 33. Rxe5 {[%emt 0:00:18]} Rxd3 {[%emt 0:00:39]} 34. Re6+ {[%emt 0:00:37]} Kc5 {[%emt 0:00:24]} 35. Nb2 {[%emt 0:01:08]} Rd2 {[%emt 0:01:05]} 36. Na4+ {[%emt 0:00:05]} Kxb5 {[%emt 0:00:29]} 37. Rxb6+ {[%emt 0:00:10]} Kc4 {[%emt 0:01:03]} 38. Rb4+ {[%emt 0:00:39]} Kd3 {[%emt 0:00:19]} 39. Re3+ {[%emt 0:01:20]} Kc2 {[%emt 0:00:14]} 40. Rb2+ {[%emt 0:00:18]} Kd1 {[%emt 0:00:48]} 41. Rb1+ {[%emt 0:00:22]} Kc2 {[%emt 0:00:08]} 42. Rb2+ {[%emt 0:00:16]} Kd1 {[%emt 0:00:05]} 43. Rxd2+ {[%emt 0:01:17]} Kxd2 {[%emt 0:00:05]} 44. Re5 {[%emt 0:00:29]} Rd8 {[%emt 0:00:43]} 45. Rxh5 {[%emt 0:00:38]} b5 {[%emt 0:00:07]} 46. Nb6 {[%emt 0:00:05]} d4 {[%emt 0:00:41]} 47. cxd4 {[%emt 0:00:10]} Rxd4 {[%emt 0:00:05]} 48. Nd5 {[%emt 0:01:14]} b4 {[%emt 0:01:00]} 49. Nxb4 {[%emt 0:00:01]} Rxb4 {[%emt 0:00:05]} 50. Rh7 {[%emt 0:00:07]} Rb7 {[%emt 0:00:11]} 51. h4 {[%emt 0:00:14]} Nc6 {[%emt 0:00:24]} 52. h5 {[%emt 0:00:15]} Nd4 {[%emt 0:00:38]} 53. Kg2 {[%emt 0:00:22]} Rf7 {[%emt 0:01:26]} 54. g4 {[%emt 0:01:11]} Ne6 {[%emt 0:01:44]} 55. h6 {[%emt 0:01:13]} Kd3 {[%emt 0:00:34]} 56. hxg7 {[%emt 0:00:35]} Nxg7 {[%emt 0:00:12]} 57. Rh3+ {[%emt 0:00:20]} Ke4 {[%emt 0:00:46]} 58. Re3+ {[%emt 0:00:02]} Kd5 {[%emt 0:00:11]} 59. Kg3 {[%emt 0:00:32]} Ne6 {[%emt 0:00:38]} 60. f3 {[%emt 0:00:37]} Kd6 {[%emt 0:00:31]} 61. Ra3 {[%emt 0:00:34]} Ke5 {[%emt 0:00:19]} 62. Ra5+ {[%emt 0:00:07]} Kd6 {[%emt 0:00:09]} 63. g5 {[%emt 0:00:37]} Ng7 {[%emt 0:01:11]} 64. Kg4 {[%emt 0:00:20]} Ke6 {[%emt 0:00:31]} 65. f4 {[%emt 0:00:15]} Rf8 {[%emt 0:01:22]} 66. Ra6+ {[%emt 0:00:25]} Kf7 {[%emt 0:00:45]} 67. f5 {[%emt 0:01:21]} Ne8 {[%emt 0:00:48]} 68. g6+ {[%emt 0:00:41]} Kg7 {[%emt 0:00:29]} 69. Kg5 {[%emt 0:00:04]} Kg8 {[%emt 0:00:40]} 70. Ra7 {[%emt 0:00:53]} Nf6 {[%emt 0:00:28]} 71. Ra4 {[%emt 0:00:40]} Kg7 {[%emt 0:00:25]} 72. Ra7+ {[%emt 0:00:10]} Kg8 {[%emt 0:00:04]} 73. Re7 {[%emt 0:00:29]} Ne8 {[%emt 0:00:29]} 74. Kh6 {[%emt 0:00:49]} Kh8 {[%emt 0:00:48]} 75. f6 {[%emt 0:00:28]} Nxf6 {[%emt 0:00:37]} 76. g7+ {[%emt 0:00:07]} Kg8 {[%emt 0:00:06]} 77. gxf8=Q+ {[%emt 0:00:08]} Kxf8 {[%emt 0:00:02]} 78. Ra7 {[%emt 0:00:17]} Ke8 {[%emt 0:00:32]} 79. Kg6 {[%emt 0:00:47]} Nd7 {[%emt 0:00:14]} 80. Kf5 {[%emt 0:00:33]} Nf8 {[%emt 0:00:18]} 81. Ke5 {[%emt 0:00:50]} Kd8 {[%emt 0:00:32]} 82. Kd6 {[%emt 0:00:33]} Ke8 {[%emt 0:00:10]} 83. Re7+ {[%emt 0:00:16]} Kd8 {[%emt 0:00:08]} 84. Ra7 {[%emt 0:00:04]} Ke8 {[%emt 0:00:03]} 85. Ra2 {[%emt 0:01:31]} Kf7 {[%emt 0:00:18]} 86. Rf2+ {[%emt 0:00:04]} Ke8 {[%emt 0:00:09]} 87. Rf1 {[%emt 0:00:32]} Ng6 {[%emt 0:00:36]} 88. Ke6 {[%emt 0:00:49]} Nf8+ {[%emt 0:00:05]} 89. Kf6 {[%emt 0:00:08]} Nd7+ {[%emt 0:00:11]} 90. Kg7 {[%emt 0:00:14]} Ke7 {[%emt 0:00:13]} 91. Re1+ {[%emt 0:00:12]} Kd6 {[%emt 0:00:30]} 92. Kf7 {[%emt 0:00:11]} Ne5+ {[%emt 0:00:15]} 93. Kf6 {[%emt 0:00:04]} Nd7+ {[%emt 0:00:05]} 94. Kf5 {[%emt 0:00:03]} Nf8 {[%emt 0:01:05]} 95. Re2 {[%emt 0:00:17]} Nd7 {[%emt 0:00:14]} 96. Re8 {[%emt 0:00:05]} Nc5 {[%emt 0:00:23]} 97. Rd8+ {[%emt 0:00:22]} Ke7 {[%emt 0:00:10]} 98. Rd5 {[%emt 0:00:39]} Nd7 {[%emt 0:00:13]} 99. Ra5 {[%emt 0:00:04]} Nf8 {[%emt 0:00:12]} 100. Ra7+ {[%emt 0:00:16]} Ke8 {[%emt 0:00:09]} 101. Kf6 {[%emt 0:00:24]} Nd7+ {[%emt 0:00:05]} 102. Ke6 {[%emt 0:00:22]} Nf8+ {[%emt 0:00:06]} 103. Kd6 {[%emt 0:00:03]} Ng6 {[%emt 0:00:32]} 104. Ra5 {[%emt 0:01:39]} Nf8 {[%emt 0:00:19]} 105. Rf5 {[%emt 0:00:20]} Ng6 {[%emt 0:00:36]} 106. Rf2 {[%emt 0:00:32]} Nf8 {[%emt 0:00:26]} 107. Rf6 {[%emt 0:00:08]} Nh7 {[%emt 0:00:59]} 108. Re6+ {[%emt 0:00:10]} Kf7 {[%emt 0:00:38]} 109. Re7+ {[%emt 0:00:07]} Kg6 {[%emt 0:00:19]} 110. Ke5 {[%emt 0:00:06]} Kh6 {[%emt 0:00:46]} 111. Kf5 {[%emt 0:00:24]} Nf8 {[%emt 0:00:55]} 112. Re8 {[%emt 0:00:36]} Nh7 {[%emt 0:00:33]} 113. Rg8 {[%emt 0:00:05]} Kh5 {[%emt 0:00:26]} 114. Rg6 {[%emt 0:01:56]} Nf8 {[%emt 0:00:25]} 115. Rg7 {[%emt 0:00:16]} Kh6 {[%emt 0:00:25]} 116. Kf6 {[%emt 0:00:16]} Nh7+ {[%emt 0:00:07]} 117. Kf7 {[%emt 0:00:04]} Ng5+ {[%emt 0:00:30]} 118. Kg8 {[%emt 0:00:07]} Kh5 1/2-1/2

[Event "Portuguese-ch U14-20 2022"]
[Site "Fatima"]
[Date "2022.04.10"]
[Round "1.24"]
[White "Moldovan, Andre Dragos"]
[Black "Guia, Artur Solovyov Eloy"]
[Result "0-1"]
[ECO "A45"]
[WhiteElo "1369"]
[BlackElo "1932"]
[Annotator "NA RC"]
[PlyCount "56"]
[EventDate "2022.04.10"]
[EventType "swiss"]
[EventCountry "POR"]
[SourceTitle "playchess.com"]
[Source "ChessBase"]
[SourceQuality "1"]
[TimeControl "5400+30"]

1. d4 {[%emt 0:00:10]} Nf6 {[%emt 0:00:31]} 2. Bf4 {[%emt 0:00:51]} c5 {[%emt 0:00:30]} 3. c3 {[%emt 0:03:45]} Qb6 {[%emt 0:01:48]} 4. b3 {[%emt 0:08:22]} d5 {[%emt 0:05:21]} 5. Nf3 {[%emt 0:07:43]} Nc6 {[%emt 0:04:37]} 6. e3 {[%emt 0:03:49]} Bf5 {[%emt 0:05:07]} 7. Nbd2 e6 {[%emt 0:04:34]} 8. Be2 {[%emt 0:10:37] [#]} cxd4 $1 {[%emt 0:06:17]} 9. cxd4 {[#]} Bb4 ({Better is} 9... Ba3 $1 $17 10. Nh4 Be4) 10. a3 {[%emt 0:20:05]} Bc3 {[%emt 0:01:58]} 11. Ra2 {[%emt 0:00:17] [#]} Ne4 $1 {[%emt 0:00:39]} 12. O-O {[%emt 0:16:51]} Bxd2 {[%emt 0:01:04]} 13. Rxd2 {[%emt 0:00:53]} Nxd2 {[%emt 0:00:08]} 14. Nxd2 {[%emt 0:00:07]} O-O {[%emt 0:00:10]} 15. b4 $19 {[%emt 0:01:35]} Rac8 {[%emt 0:00:55]} 16. Nb3 {[%emt 0:02:41]} Nxb4 {[%emt 0:14:25]} 17. Nc5 {[%emt 0:03:14]} e5 {[%emt 0:00:26]} 18. Bxe5 {[%emt 0:01:19]} Nc6 {[%emt 0:00:09]} 19. Bf4 {[%emt 0:02:22]} Rfe8 {[%emt 0:09:03]} 20. Bg4 {[%emt 0:04:39]} Bxg4 {[%emt 0:01:32]} 21. Qxg4 {[%emt 0:00:09]} Ne7 {[%emt 0:01:24]} 22. h4 {[%emt 0:06:25]} Qg6 {[%emt 0:03:39]} 23. Qf3 {[%emt 0:00:42]} b6 {[%emt 0:00:59]} 24. Nd7 {[%emt 0:01:43]} f6 {[%emt 0:01:55]} 25. Qh3 {[%emt 0:03:05]} Qf5 {[%emt 0:01:01]} 26. Qxf5 {[%emt 0:01:16]} Nxf5 {[%emt 0:00:01]} 27. Nb8 {[%emt 0:00:31]} Rxb8 {[%emt 0:00:03]} 28. Bxb8 {[%emt 0:00:12]} Rxb8 {[%emt 0:00:00]} 0-1

[Event "Portuguese-ch U14-20 2022"]
[Site "Fatima"]
[Date "2022.04.10"]
[Round "1.25"]
[White "Goncalves, Ruan Lucas Alves"]
[Black "Fernandes, Tiago Joao Carneiro"]
[Result "1-0"]
[ECO "D02"]
[WhiteElo "1963"]
[BlackElo "1336"]
[Annotator "NA RC"]
[PlyCount "75"]
[EventDate "2022.04.10"]
[EventType "swiss"]
[EventCountry "POR"]
[SourceTitle "playchess.com"]
[Source "ChessBase"]
[SourceQuality "1"]
[TimeControl "5400+30"]

1. d4 {[%emt 0:00:02]} Nf6 {[%emt 0:00:06]} 2. Bf4 {[%emt 0:00:06]} d5 3. Nf3 {[%emt 0:00:17]} e6 {[%emt 0:00:37]} 4. e3 {[%emt 0:00:11]} c5 {[%emt 0:00:12]} 5. c3 {[%emt 0:00:09]} Nc6 {[%emt 0:00:17]} 6. Bd3 {[%emt 0:04:01]} Bd7 {[%emt 0:08:00]} 7. Nbd2 {[%emt 0:01:27]} h6 {[%emt 0:03:13]} 8. h3 {[%emt 0:02:03]} c4 {[%emt 0:02:38]} 9. Bc2 {[%emt 0:00:37]} b5 {[%emt 0:00:18]} 10. b4 {[%emt 0:12:57]} (10. Ne5 $14) 10... Be7 {[%emt 0:04:39]} 11. O-O {[%emt 0:03:45]} a5 {[%emt 0:01:55]} 12. a3 $1 {[%emt 0:03:10]} O-O {[%emt 0:00:12]} 13. Bh2 {[%emt 0:10:08]} Qb6 {[%emt 0:08:15]} 14. Ne5 {[%emt 0:08:20]} Nxe5 {[%emt 0:00:50]} 15. dxe5 {[%emt 0:00:05]} Ne8 {[%emt 0:01:04]} 16. Nf3 {[%emt 0:00:48]} f6 {[%emt 0:02:24]} 17. Nh4 $11 {[%emt 0:05:10]} (17. Qd2 $14) 17... f5 {[%emt 0:10:10]} 18. Nf3 {[%emt 0:03:18]} Nc7 {[%emt 0:05:33]} 19. Nd4 {[%emt 0:01:54]} Na6 {[%emt 0:02:48]} 20. Qd2 {[%emt 0:03:56]} Nb8 {[%emt 0:01:03]} 21. Bg3 {[%emt 0:02:06]} Nc6 {[%emt 0:05:39]} 22. f4 {[%emt 0:01:11]} Nxd4 {[%emt 0:03:58]} 23. exd4 {[%emt 0:00:26]} Qd8 {[%emt 0:00:34]} 24. Qe3 {[%emt 0:05:00]} h5 {[%emt 0:06:38]} 25. Qf3 {[%emt 0:04:04]} h4 {[%emt 0:01:44]} 26. Bf2 {[%emt 0:00:21]} Be8 {[%emt 0:00:24]} 27. Kh2 {[%emt 0:01:14]} Bf7 {[%emt 0:02:08]} 28. Rg1 {[%emt 0:01:16]} Kh8 {[%emt 0:02:25]} 29. g4 {[%emt 0:02:23]} hxg3+ {[%emt 0:04:06]} 30. Bxg3 {[%emt 0:01:04]} Bh4 {[%emt 0:00:45]} 31. Qg2 {[%emt 0:02:19]} Rg8 {[%emt 0:00:21]} 32. Bxh4 {[%emt 0:00:50]} Qxh4 {[%emt 0:00:05]} 33. Qg3 {[%emt 0:03:36]} Qxg3+ {[%emt 0:00:31]} 34. Rxg3 {[%emt 0:00:02]} axb4 {[%emt 0:00:21]} 35. cxb4 {[%emt 0:00:06]} Bh5 {[%emt 0:00:18]} 36. Bd1 {[%emt 0:00:20]} Bxd1 {[%emt 0:00:13]} 37. Rxd1 {[%emt 0:00:04]} Rxa3 {[%emt 0:00:09]} 38. Rxa3 {[%emt 0:00:06]} 1-0

[Event "Portuguese-ch U14-20 2022"]
[Site "Fatima"]
[Date "2022.04.10"]
[Round "1.26"]
[White "Cabral, Guilherme"]
[Black "Ribeiro, Gustavo"]
[Result "0-1"]
[ECO "D45"]
[WhiteElo "1210"]
[BlackElo "1860"]
[Annotator "NA RC"]
[PlyCount "92"]
[EventDate "2022.04.10"]
[EventType "swiss"]
[EventCountry "POR"]
[SourceTitle "playchess.com"]
[Source "ChessBase"]
[SourceQuality "1"]
[TimeControl "5400+30"]

1. d4 {[%emt 0:00:08]} d5 {[%emt 0:00:05]} 2. c4 {[%emt 0:00:15]} c6 {[%emt 0:00:07]} 3. e3 {[%emt 0:00:26]} Nf6 {[%emt 0:00:06]} 4. Nc3 {[%emt 0:00:29]} e6 {[%emt 0:00:34]} 5. Nf3 {[%emt 0:00:31]} Bd6 {[%emt 0:00:12]} 6. Be2 {[%emt 0:00:26]} O-O {[%emt 0:00:11]} 7. O-O {[%emt 0:00:24]} Re8 {[%emt 0:00:33]} 8. b3 {[%emt 0:00:25]} Nbd7 {[%emt 0:01:10]} 9. Bb2 {[%emt 0:01:09]} b6 10. Rc1 Bb7 11. h3 Rc8 12. Qc2 c5 13. Rfd1 Qe7 14. dxc5 Nxc5 15. cxd5 Nxd5 16. Nxd5 Bxd5 17. Qd2 $2 (17. b4 $18) 17... Red8 18. b4 Na4 19. Rxc8 Rxc8 20. Ba3 Nc3 21. Ba6 Rc7 ({Much worse is} 21... Nxd1 $6 22. Bxc8 Qd8 23. Qxd1 $11) 22. Rc1 Nxa2 23. Rxc7 Qxc7 ({Don't take} 23... Bxc7 24. e4 Bxe4 25. Qxa2 $16) 24. e4 {[#]} Bxe4 ({Black should play} 24... Bb3 $1 $17 25. Nd4 Bc4 26. Bxc4 Qxc4) 25. Qxa2 Bxf3 26. gxf3 Qc3 27. Be2 Qe5 28. Bd3 Qh2+ 29. Kf1 Qxh3+ 30. Ke2 Qh4 31. b5 $2 {[#]} (31. Qc2 $16 {stays on course.} g6 32. Qc8+ Kg7 33. Bb2+ e5 34. b5) 31... Qa4 $1 32. Bxh7+ Kh8 33. Qb1 Qxa3 34. Bd3 g6 35. Qc2 Qc5 36. Qa2 Qe5+ 37. Kf1 Qd4 38. Be4 Bc5 39. Kg2 Kg7 40. Bc6 g5 41. Kg3 $2 (41. Be4 $17 {is tougher.}) 41... Qh4+ (41... a5 $142 42. Kg2 a4) 42. Kg2 g4 43. Qa1+ $19 (43. Qb2+ $17 {keeps fighting.} Kg8 44. fxg4) 43... Kf8 44. Qb2 Qh3+ 45. Kg1 g3 46. f4 gxf2+ 0-1

[Event "Portuguese-ch U14-20 2022"]
[Site "Fatima"]
[Date "2022.04.10"]
[Round "1.27"]
[White "Bartolo, Filipe Diogo Correia"]
[Black "Cabete, Manuel"]
[Result "1/2-1/2"]
[ECO "A05"]
[WhiteElo "1869"]
[BlackElo "1233"]
[Annotator "NA RC"]
[PlyCount "53"]
[EventDate "2022.04.10"]
[EventType "swiss"]
[EventCountry "POR"]
[SourceTitle "playchess.com"]
[Source "ChessBase"]
[SourceQuality "1"]
[TimeControl "5400+30"]

1. Nf3 {[%emt 0:00:01]} Nf6 {[%emt 0:00:36]} 2. g3 {[%emt 0:00:06]} d5 {[%emt 0:01:57]} 3. Bg2 {[%emt 0:00:06]} g6 {[%emt 0:01:45]} 4. O-O {[%emt 0:00:07]} Bg7 {[%emt 0:00:15]} 5. d3 {[%emt 0:02:20]} O-O {[%emt 0:01:48]} 6. Nbd2 {[%emt 0:00:42]} Nbd7 {[%emt 0:03:52]} 7. c4 {[%emt 0:04:38]} c6 {[%emt 0:02:36]} 8. Rb1 {[%emt 0:00:59]} a5 {[%emt 0:02:02]} 9. b3 {[%emt 0:12:29]} Re8 {[%emt 0:10:41]} 10. Qc2 {[%emt 0:13:00]} e5 {[%emt 0:11:19]} 11. cxd5 {[%emt 0:05:24]} Nxd5 {[%emt 0:06:05]} 12. a3 {[%emt 0:00:45]} Nc7 $14 {[%emt 0:11:11]} (12... Qe7 $11 {should be considered.}) 13. Nc4 {[%emt 0:12:58]} Nb5 {[%emt 0:07:58]} 14. b4 {[%emt 0:01:39]} axb4 {[%emt 0:02:19]} 15. axb4 {[%emt 0:05:09]} Nb6 {[%emt 0:08:57]} 16. Bb2 {[%emt 0:04:36]} Nxc4 {[%emt 0:02:26]} 17. dxc4 {[%emt 0:10:53]} Na3 {[%emt 0:00:30]} 18. Bxa3 {[%emt 0:00:08]} Rxa3 {[%emt 0:02:01]} 19. Qb2 {[%emt 0:04:04]} Ra7 {[%emt 0:02:22]} 20. Rfd1 {[%emt 0:03:49]} Qe7 {[%emt 0:01:55]} 21. e4 {[%emt 0:00:11]} Bg4 {[%emt 0:01:31]} 22. c5 {[%emt 0:05:31]} Bxf3 {[%emt 0:01:10]} 23. Bxf3 {[%emt 0:00:08]} Raa8 {[%emt 0:03:02]} 24. Be2 {[%emt 0:03:30]} Red8 {[%emt 0:03:08]} 25. Bc4 {[%emt 0:00:43]} Rxd1+ {[%emt 0:01:34]} 26. Rxd1 {[%emt 0:00:07]} Rd8 {[%emt 0:00:25]} 27. Ra1 {[%emt 0:01:33]} 1/2-1/2

[Event "Portuguese-ch U14-20 2022"]
[Site "Fatima"]
[Date "2022.04.10"]
[Round "1.28"]
[White "Bento, David"]
[Black "Pacetti Terra, Nicolas"]
[Result "1/2-1/2"]
[ECO "C90"]
[WhiteElo "1282"]
[BlackElo "1756"]
[Annotator "NA RC"]
[PlyCount "94"]
[EventDate "2022.04.10"]
[EventType "swiss"]
[EventCountry "POR"]
[SourceTitle "playchess.com"]
[Source "ChessBase"]
[SourceQuality "1"]
[TimeControl "5400+30"]

1. e4 {[%emt 0:00:05]} e5 {[%emt 0:00:05]} 2. Nf3 {[%emt 0:00:09]} Nc6 {[%emt 0:00:06]} 3. Bb5 {[%emt 0:00:12]} a6 {[%emt 0:00:14]} 4. Ba4 {[%emt 0:00:04]} Nf6 {[%emt 0:00:09]} 5. d3 {[%emt 0:00:09]} b5 {[%emt 0:00:48]} 6. Bb3 {[%emt 0:00:06]} Be7 {[%emt 0:00:20]} 7. O-O {[%emt 0:00:12]} O-O {[%emt 0:00:18]} 8. Re1 {[%emt 0:00:13]} d6 {[%emt 0:00:31]} 9. c3 {[%emt 0:00:38]} Bb7 {[%emt 0:02:41]} 10. Nbd2 {[%emt 0:00:48]} Na5 {[%emt 0:01:01]} 11. Bc2 {[%emt 0:01:25]} c5 {[%emt 0:03:30]} 12. Nf1 {[%emt 0:03:49]} Re8 {[%emt 0:02:15]} 13. Ne3 {[%emt 0:02:48]} g6 {[%emt 0:03:16]} 14. Ng5 {[%emt 0:08:01]} h6 {[%emt 0:08:27]} 15. Nh3 {[%emt 0:00:10]} Bc8 {[%emt 0:32:49]} 16. Qf3 {[%emt 0:06:44]} b4 {[%emt 0:07:11]} 17. Bd1 {[%emt 0:06:40]} Bf8 {[%emt 0:04:44]} 18. Qg3 {[%emt 0:07:57]} Bg7 {[%emt 0:04:08]} 19. Nf5 {[%emt 0:09:29]} gxf5 {[%emt 0:01:09]} 20. Bxh6 {[%emt 0:00:29]} Ng4 {[%emt 0:02:54]} 21. Bxg7 {[%emt 0:00:14]} f4 {[%emt 0:01:38]} 22. Nxf4 {[%emt 0:01:31]} exf4 {[%emt 0:02:09]} 23. Qxf4 {[%emt 0:00:20]} Kxg7 {[%emt 0:00:40]} 24. Bxg4 {[%emt 0:00:11]} Qf6 {[%emt 0:04:22]} 25. Qxf6+ {[%emt 0:04:34]} Kxf6 {[%emt 0:00:07]} 26. Bxc8 {[%emt 0:00:11]} Raxc8 {[%emt 0:00:05]} 27. f4 {[%emt 0:00:27]} Nc6 {[%emt 0:04:13]} 28. Kf2 {[%emt 0:02:11]} Rb8 {[%emt 0:02:28]} 29. g4 {[%emt 0:09:23]} bxc3 {[%emt 0:02:46]} 30. bxc3 {[%emt 0:00:05]} Rb2+ {[%emt 0:00:11]} 31. Re2 {[%emt 0:00:07]} Rh8 {[%emt 0:03:01]} 32. Rh1 {[%emt 0:00:29]} Rxe2+ {[%emt 0:00:05]} 33. Kxe2 {[%emt 0:00:04]} Rh3 {[%emt 0:00:08]} 34. Kd2 {[%emt 0:08:15]} Rf3 {[%emt 0:05:31]} 35. h4 {[%emt 0:05:41]} Rxf4 {[%emt 0:00:27]} 36. g5+ {[%emt 0:00:16]} Kg6 {[%emt 0:02:32]} 37. h5+ {[%emt 0:00:59]} Kxg5 {[%emt 0:00:59]} 38. h6 {[%emt 0:00:06]} Ne5 {[%emt 0:00:22]} 39. h7 {[%emt 0:00:33]} Ng6 {[%emt 0:00:14]} 40. h8=Q {[%emt 0:00:30]} Nxh8 {[%emt 0:00:06]} 41. Rxh8 {[%emt 0:00:10]} Rf2+ {[%emt 0:00:29]} 42. Ke3 {[%emt 0:00:06]} Rxa2 {[%emt 0:00:12]} 43. Rd8 {[%emt 0:00:40]} f5 {[%emt 0:02:00]} 44. exf5 {[%emt 0:01:28]} Kxf5 {[%emt 0:00:13]} 45. Rxd6 {[%emt 0:00:06]} Ke5 {[%emt 0:00:06]} 46. Rd8 {[%emt 0:00:22]} Ra3 {[%emt 0:00:34]} 47. c4 {[%emt 0:00:34]} Ra5 {[%emt 0:00:37]} 1/2-1/2